[Event "December 5 Early 2023"]
[Site "https://www.chess.com"]
[Date "2023.12.05"]
[Round "11"]
[White "Michalski, Olaf"]
[Black "IranianCheetah"]
[Result "0-1"]
[Board "132"]
[TimeControl "180+1"]
[WhiteFideId "1106740"]
[WhiteElo "2193"]
[BlackElo "2318"]
[WhiteTeam "POL"]
[WhiteClock "0:00:15"]
[BlackClock "0:00:20"]

1. d4 {[%clk 0:03:00]}  d5 {[%clk 0:03:00]} 2. c4 {[%clk 0:03:00]}  c6 {[%clk 0:03:00]} 3. cxd5 {[%clk 0:02:58]}  cxd5 {[%clk 0:03:01]} 4. Nc3 {[%clk 0:02:58]}  Nf6 {[%clk 0:03:01]} 5. Nf3 {[%clk 0:02:57]}  Nc6 {[%clk 0:03:01]} 6. Bf4 {[%clk 0:02:58]}  a6 {[%clk 0:03:01]} 7. e3 {[%clk 0:02:57]}  Bg4 {[%clk 0:03:01]} 8. h3 {[%clk 0:02:55]}  Bh5 {[%clk 0:02:59]} 9. Qb3 {[%clk 0:02:55]}  Ra7 {[%clk 0:02:56]} 10. Ne5 {[%clk 0:02:48]}  e6 {[%clk 0:02:35]} 11. Nxc6 {[%clk 0:02:28]}  bxc6 {[%clk 0:02:35]} 12. Bb8 {[%clk 0:02:28]}  Ra8 {[%clk 0:02:32]} 13. Be5 {[%clk 0:02:27]}  Nd7 {[%clk 0:02:21]} 14. Bg3 {[%clk 0:02:21]}  c5 {[%clk 0:02:14]} 15. Qb7 {[%clk 0:01:57]}  c4 {[%clk 0:02:04]} 16. Be2 {[%clk 0:01:51]}  Bxe2 {[%clk 0:01:55]} 17. Kxe2 {[%clk 0:01:51]}  Be7 {[%clk 0:01:47]} 18. b3 {[%clk 0:01:38]}  Qc8 {[%clk 0:01:36]} 19. Qxc8+ {[%clk 0:01:25]}  Rxc8 {[%clk 0:01:37]} 20. bxc4 {[%clk 0:01:25]}  Rxc4 {[%clk 0:01:37]} 21. Kd3 {[%clk 0:01:25]}  O-O {[%clk 0:01:35]} 22. a4 {[%clk 0:01:10]}  Rfc8 {[%clk 0:01:32]} 23. Rhc1 {[%clk 0:01:08]}  Bb4 {[%clk 0:01:30]} 24. Ne2 {[%clk 0:01:07]}  Rxc1 {[%clk 0:01:22]} 25. Rxc1 {[%clk 0:01:07]}  Rxc1 {[%clk 0:01:22]} 26. Nxc1 {[%clk 0:01:08]}  Nb6 {[%clk 0:01:22]} 27. Na2 {[%clk 0:01:02]}  Be1 {[%clk 0:00:50]} 28. Ke2 {[%clk 0:00:55]}  Ba5 {[%clk 0:00:49]} 29. Bc7 {[%clk 0:00:55]}  Kf8 {[%clk 0:00:48]} 30. Kd3 {[%clk 0:00:44]}  Ke8 {[%clk 0:00:46]} 31. Bxb6 {[%clk 0:00:43]}  Bxb6 {[%clk 0:00:46]} 32. Nb4 {[%clk 0:00:44]}  a5 {[%clk 0:00:37]} 33. Nc2 {[%clk 0:00:44]}  Kd7 {[%clk 0:00:36]} 34. Na3 {[%clk 0:00:44]}  Bc7 {[%clk 0:00:33]} 35. Nb5 {[%clk 0:00:43]}  Bb8 {[%clk 0:00:30]} 36. Ke2 {[%clk 0:00:41]}  e5 {[%clk 0:00:27]} 37. dxe5 {[%clk 0:00:40]}  Bxe5 {[%clk 0:00:26]} 38. Kd3 {[%clk 0:00:36]}  Kc6 {[%clk 0:00:27]} 39. f4 {[%clk 0:00:32]}  Bf6 {[%clk 0:00:25]} 40. g4 {[%clk 0:00:31]}  Kc5 {[%clk 0:00:24]} 41. g5 {[%clk 0:00:31]}  Ba1 {[%clk 0:00:23]} 42. e4 {[%clk 0:00:25]}  dxe4+ {[%clk 0:00:22]} 43. Kxe4 {[%clk 0:00:25]}  Kb4 {[%clk 0:00:23]} 44. Nd6 {[%clk 0:00:25]}  f6 {[%clk 0:00:21]} 45. gxf6 {[%clk 0:00:19]}  Bxf6 {[%clk 0:00:19]} 46. Ne8 {[%clk 0:00:17]}  Kxa4 {[%clk 0:00:17]} 47. Nxf6 {[%clk 0:00:14]}  gxf6 {[%clk 0:00:18]} 48. Kf5 {[%clk 0:00:15]}  Kb3 {[%clk 0:00:17]} 49. Kxf6 {[%clk 0:00:15]}  a4 {[%clk 0:00:18]} 50. Kg7 {[%clk 0:00:16]}  a3 {[%clk 0:00:19]} 51. f5 {[%clk 0:00:16]}  a2 {[%clk 0:00:20]} 52. f6 {[%clk 0:00:17]}  a1=Q {[%clk 0:00:20]} 53. Kxh7 {[%clk 0:00:15]}  Qxf6 {[%clk 0:00:20]} 0-1

[Event "December 5 Early 2023"]
[Site "https://www.chess.com"]
[Date "2023.12.05"]
[Round "11"]
[White "Shapiro, Daniel"]
[Black "Ghosh, Chanchal Kumer"]
[Result "0-1"]
[Board "133"]
[TimeControl "180+1"]
[WhiteFideId "2001780"]
[BlackFideId "10201858"]
[WhiteElo "2303"]
[BlackElo "2079"]
[WhiteTeam "USA"]
[BlackTeam "BAN"]
[WhiteClock "0:01:23"]
[BlackClock "0:01:32"]

1. d4 {[%clk 0:03:00]}  d5 {[%clk 0:02:57]} 2. c4 {[%clk 0:02:59]}  e6 {[%clk 0:02:57]} 3. Nf3 {[%clk 0:02:58]}  Nf6 {[%clk 0:02:57]} 4. g3 {[%clk 0:02:59]}  c6 {[%clk 0:02:57]} 5. Qc2 {[%clk 0:02:56]}  Nbd7 {[%clk 0:02:58]} 6. Bg2 {[%clk 0:02:56]}  Bd6 {[%clk 0:02:57]} 7. Nbd2 {[%clk 0:02:55]}  O-O {[%clk 0:02:57]} 8. O-O {[%clk 0:02:55]}  e5 {[%clk 0:02:57]} 9. cxd5 {[%clk 0:02:52]}  cxd5 {[%clk 0:02:55]} 10. dxe5 {[%clk 0:02:52]}  Nxe5 {[%clk 0:02:55]} 11. b3 {[%clk 0:02:51]}  Bg4 {[%clk 0:02:46]} 12. Bb2 {[%clk 0:02:51]}  Re8 {[%clk 0:02:46]} 13. Rad1 {[%clk 0:02:48]}  Qe7 {[%clk 0:02:35]} 14. Nd4 {[%clk 0:02:40]}  Rac8 {[%clk 0:02:20]} 15. Qb1 {[%clk 0:02:40]}  Qd7 {[%clk 0:02:12]} 16. f3 {[%clk 0:02:30]}  Bh3 {[%clk 0:02:04]} 17. Rc1 {[%clk 0:02:05]}  a6 {[%clk 0:01:47]} 18. Rfd1 {[%clk 0:02:05]}  Bxg2 {[%clk 0:01:46]} 19. Kxg2 {[%clk 0:02:05]}  Ng6 {[%clk 0:01:41]} 20. Qd3 {[%clk 0:01:46]}  Nh5 {[%clk 0:01:35]} 21. e4 {[%clk 0:01:23]}  Nhf4+ {[%clk 0:01:32]} 0-1

[Event "December 5 Early 2023"]
[Site "https://www.chess.com"]
[Date "2023.12.05"]
[Round "11"]
[White "Smirnov, Timofey"]
[Black "Sarkar, Justin"]
[Result "0-1"]
[Board "134"]
[TimeControl "180+1"]
[WhiteFideId "24176427"]
[BlackFideId "2010011"]
[WhiteElo "2059"]
[BlackElo "2284"]
[WhiteTeam "RUS"]
[BlackTeam "USA"]
[WhiteClock "0:00:03"]
[BlackClock "0:00:03"]

1. d4 {[%clk 0:03:00]}  d5 {[%clk 0:02:36]} 2. Bf4 {[%clk 0:02:59]}  e6 {[%clk 0:02:26]} 3. e3 {[%clk 0:02:54]}  c5 {[%clk 0:02:19]} 4. c3 {[%clk 0:02:54]}  Nc6 {[%clk 0:02:16]} 5. Nd2 {[%clk 0:02:54]}  Bd6 {[%clk 0:02:07]} 6. Bg3 {[%clk 0:02:46]}  Nge7 {[%clk 0:02:05]} 7. Ngf3 {[%clk 0:02:41]}  Nf5 {[%clk 0:01:56]} 8. dxc5 {[%clk 0:02:37]}  Nxg3 {[%clk 0:01:47]} 9. hxg3 {[%clk 0:02:38]}  Bxc5 {[%clk 0:01:46]} 10. Bd3 {[%clk 0:02:29]}  g6 {[%clk 0:01:46]} 11. Nb3 {[%clk 0:02:25]}  Be7 {[%clk 0:01:39]} 12. Nfd4 {[%clk 0:02:24]}  Bd7 {[%clk 0:01:33]} 13. Qf3 {[%clk 0:02:15]}  Ne5 {[%clk 0:01:24]} 14. Qe2 {[%clk 0:02:14]}  Nxd3+ {[%clk 0:01:24]} 15. Qxd3 {[%clk 0:02:15]}  e5 {[%clk 0:01:24]} 16. Ne2 {[%clk 0:02:12]}  Bc6 {[%clk 0:01:19]} 17. O-O-O {[%clk 0:02:09]}  a5 {[%clk 0:01:14]} 18. Nd2 {[%clk 0:02:01]}  a4 {[%clk 0:01:11]} 19. Rh2 {[%clk 0:01:54]}  Qa5 {[%clk 0:01:07]} 20. Re1 {[%clk 0:01:37]}  Qa6 {[%clk 0:00:28]} 21. Qc2 {[%clk 0:01:31]}  Bb5 {[%clk 0:00:27]} 22. Nf1 {[%clk 0:01:23]}  Bd3 {[%clk 0:00:24]} 23. Qd2 {[%clk 0:01:21]}  Rc8 {[%clk 0:00:21]} 24. g4 {[%clk 0:01:10]}  a3 {[%clk 0:00:19]} 25. b3 {[%clk 0:01:06]}  O-O {[%clk 0:00:19]} 26. Nfg3 {[%clk 0:00:59]}  d4 {[%clk 0:00:16]} 27. c4 {[%clk 0:00:57]}  Bxc4 {[%clk 0:00:11]} 28. bxc4 {[%clk 0:00:49]}  Qxc4+ {[%clk 0:00:11]} 29. Kb1 {[%clk 0:00:48]}  d3 {[%clk 0:00:08]} 30. Nc1 {[%clk 0:00:45]}  Qc2+ {[%clk 0:00:02]} 31. Qxc2 {[%clk 0:00:45]}  dxc2+ {[%clk 0:00:03]} 32. Ka1 {[%clk 0:00:44]}  Bb4 {[%clk 0:00:03]} 33. Nge2 {[%clk 0:00:42]}  Bxe1 {[%clk 0:00:03]} 34. Rh1 {[%clk 0:00:35]}  Rfd8 {[%clk 0:00:03]} 35. Rxe1 {[%clk 0:00:33]}  Rd1 {[%clk 0:00:04]} 36. Rg1 {[%clk 0:00:22]}  Rcd8 {[%clk 0:00:03]} 37. f3 {[%clk 0:00:15]}  g5 {[%clk 0:00:03]} 38. g3 {[%clk 0:00:15]}  Kf8 {[%clk 0:00:03]} 39. e4 {[%clk 0:00:15]}  Ke8 {[%clk 0:00:03]} 40. f4 {[%clk 0:00:12]}  f6 {[%clk 0:00:03]} 41. fxg5 {[%clk 0:00:12]}  fxg5 {[%clk 0:00:03]} 42. Rg2 {[%clk 0:00:05]}  Re1 {[%clk 0:00:03]} 43. Rf2 {[%clk 0:00:05]}  Rdd1 {[%clk 0:00:02]} 44. Rh2 {[%clk 0:00:03]}  Rxc1+ {[%clk 0:00:03]} 45. Nxc1 {[%clk 0:00:03]}  Rxc1# {[%clk 0:00:03]} 0-1

[Event "December 5 Early 2023"]
[Site "https://www.chess.com"]
[Date "2023.12.05"]
[Round "11"]
[White "Tilahun , Abel Mathewos"]
[Black "De Souza, Cristiano Gomes"]
[Result "1-0"]
[Board "135"]
[TimeControl "180+1"]
[WhiteFideId "15702391"]
[BlackFideId "2151758"]
[WhiteElo "2024"]
[BlackElo "2257"]
[WhiteTeam "ETH"]
[BlackTeam "BRA"]
[WhiteClock "0:02:37"]
[BlackClock "0:02:30"]

1. d4 {[%clk 0:02:59]}  Nf6 {[%clk 0:02:47]} 2. c4 {[%clk 0:02:59]}  g6 {[%clk 0:02:47]} 3. Nc3 {[%clk 0:02:59]}  Bg7 {[%clk 0:02:47]} 4. e4 {[%clk 0:03:00]}  d6 {[%clk 0:02:48]} 5. f3 {[%clk 0:03:00]}  O-O {[%clk 0:02:49]} 6. Be3 {[%clk 0:03:00]}  Nc6 {[%clk 0:02:49]} 7. Nge2 {[%clk 0:03:01]}  e5 {[%clk 0:02:50]} 8. d5 {[%clk 0:03:01]}  Nd4 {[%clk 0:02:48]} 9. Nxd4 {[%clk 0:03:00]}  exd4 {[%clk 0:02:48]} 10. Bxd4 {[%clk 0:03:00]}  c6 {[%clk 0:02:46]} 11. Qd2 {[%clk 0:02:59]}  cxd5 {[%clk 0:02:45]} 12. cxd5 {[%clk 0:02:59]}  a6 {[%clk 0:02:44]} 13. O-O-O {[%clk 0:02:58]}  b5 {[%clk 0:02:39]} 14. Kb1 {[%clk 0:02:58]}  b4 {[%clk 0:02:39]} 15. Na4 {[%clk 0:02:56]}  a5 {[%clk 0:02:39]} 16. Bb5 {[%clk 0:02:46]}  Bd7 {[%clk 0:02:37]} 17. Bxd7 {[%clk 0:02:44]}  Nxd7 {[%clk 0:02:36]} 18. Bxg7 {[%clk 0:02:42]}  Kxg7 {[%clk 0:02:37]} 19. Qd4+ {[%clk 0:02:42]}  Kg8 {[%clk 0:02:36]} 20. h4 {[%clk 0:02:41]}  h5 {[%clk 0:02:34]} 21. g4 {[%clk 0:02:39]}  hxg4 {[%clk 0:02:32]} 22. h5 {[%clk 0:02:39]}  g5 {[%clk 0:02:30]} 23. h6 {[%clk 0:02:37]}  Kh7 {[%clk 0:02:30]} 24. Qg7# {[%clk 0:02:37]} 1-0

[Event "December 5 Early 2023"]
[Site "https://www.chess.com"]
[Date "2023.12.05"]
[Round "11"]
[White "Pertinez Soria, Juan Luis"]
[Black "Vifleemskaia, Svetlana"]
[Result "1-0"]
[Board "137"]
[TimeControl "180+1"]
[WhiteFideId "2225620"]
[BlackFideId "4129490"]
[WhiteElo "2165"]
[BlackElo "2248"]
[WhiteTeam "ESP"]
[BlackTeam "RUS"]
[WhiteClock "0:00:47"]
[BlackClock "0:00:00"]

1. e4 {[%clk 0:03:00]}  e5 {[%clk 0:02:54]} 2. Nf3 {[%clk 0:03:00]}  Nc6 {[%clk 0:02:54]} 3. Bb5 {[%clk 0:02:59]}  a6 {[%clk 0:02:53]} 4. Ba4 {[%clk 0:02:59]}  Bc5 {[%clk 0:02:54]} 5. c3 {[%clk 0:02:59]}  Nge7 {[%clk 0:02:53]} 6. O-O {[%clk 0:02:59]}  b5 {[%clk 0:02:52]} 7. Bc2 {[%clk 0:02:58]}  d6 {[%clk 0:02:52]} 8. d4 {[%clk 0:02:58]}  exd4 {[%clk 0:02:53]} 9. cxd4 {[%clk 0:02:59]}  Bb6 {[%clk 0:02:52]} 10. a4 {[%clk 0:02:58]}  Bb7 {[%clk 0:02:42]} 11. Nc3 {[%clk 0:02:54]}  b4 {[%clk 0:02:40]} 12. Nd5 {[%clk 0:02:54]}  Ba7 {[%clk 0:02:35]} 13. Re1 {[%clk 0:02:48]}  O-O {[%clk 0:02:35]} 14. Bg5 {[%clk 0:02:47]}  f6 {[%clk 0:02:34]} 15. Be3 {[%clk 0:02:45]}  Nxd5 {[%clk 0:02:31]} 16. exd5 {[%clk 0:02:39]}  Ne7 {[%clk 0:02:31]} 17. Bb3 {[%clk 0:02:38]}  Bxd5 {[%clk 0:02:29]} 18. Rc1 {[%clk 0:02:32]}  Rb8 {[%clk 0:02:27]} 19. Bxd5+ {[%clk 0:02:28]}  Nxd5 {[%clk 0:02:26]} 20. Qb3 {[%clk 0:02:28]}  Kh8 {[%clk 0:02:12]} 21. Qxd5 {[%clk 0:02:27]}  Qd7 {[%clk 0:02:10]} 22. Rc6 {[%clk 0:02:22]}  Rb6 {[%clk 0:02:08]} 23. Rec1 {[%clk 0:02:20]}  Rc8 {[%clk 0:02:08]} 24. b3 {[%clk 0:02:20]}  g6 {[%clk 0:01:57]} 25. h3 {[%clk 0:02:18]}  Kg7 {[%clk 0:01:56]} 26. Nd2 {[%clk 0:02:18]}  h5 {[%clk 0:01:52]} 27. a5 {[%clk 0:02:12]}  Rb5 {[%clk 0:01:49]} 28. Qf3 {[%clk 0:02:08]}  Rxa5 {[%clk 0:01:48]} 29. d5 {[%clk 0:02:01]}  Bxe3 {[%clk 0:01:42]} 30. fxe3 {[%clk 0:02:01]}  Ra2 {[%clk 0:01:35]} 31. Ne4 {[%clk 0:02:01]}  Qe7 {[%clk 0:01:28]} 32. Nxf6 {[%clk 0:01:50]}  Rd2 {[%clk 0:00:56]} 33. Ne4 {[%clk 0:01:28]}  Rd3 {[%clk 0:00:50]} 34. h4 {[%clk 0:01:26]}  Rxd5 {[%clk 0:00:47]} 35. Ng5 {[%clk 0:01:25]}  Rf5 {[%clk 0:00:46]} 36. Qg3 {[%clk 0:01:21]}  Re5 {[%clk 0:00:42]} 37. e4 {[%clk 0:01:19]}  a5 {[%clk 0:00:34]} 38. Qf2 {[%clk 0:01:04]}  Qd7 {[%clk 0:00:28]} 39. Qd4 {[%clk 0:00:57]}  Kg8 {[%clk 0:00:12]} 40. Qc4+ {[%clk 0:00:54]}  Kg7 {[%clk 0:00:10]} 41. Rxc7 {[%clk 0:00:54]}  Rxc7 {[%clk 0:00:10]} 42. Qxc7 {[%clk 0:00:55]}  Qxc7 {[%clk 0:00:10]} 43. Rxc7+ {[%clk 0:00:56]}  Kg8 {[%clk 0:00:09]} 44. Rd7 {[%clk 0:00:52]}  a4 {[%clk 0:00:05]} 45. bxa4 {[%clk 0:00:52]}  b3 {[%clk 0:00:05]} 46. Rb7 {[%clk 0:00:52]}  Ra5 {[%clk 0:00:04]} 47. Rxb3 {[%clk 0:00:52]}  Rxa4 {[%clk 0:00:04]} 48. Rb7 {[%clk 0:00:49]}  Rd4 {[%clk 0:00:00]} 49. Rd7 {[%clk 0:00:47]} 1-0

[Event "December 5 Early 2023"]
[Site "https://www.chess.com"]
[Date "2023.12.05"]
[Round "11"]
[White "Fernandez Hernandez, Gerardo"]
[Black "Nikulina, Alena"]
[Result "0-1"]
[Board "138"]
[TimeControl "180+1"]
[WhiteFideId "2207400"]
[BlackFideId "4172051"]
[WhiteElo "2213"]
[BlackElo "2032"]
[WhiteTeam "ESP"]
[BlackTeam "RUS"]
[WhiteClock "0:00:00"]
[BlackClock "0:00:06"]

1. e4 {[%clk 0:03:00]}  c5 {[%clk 0:02:59]} 2. d3 {[%clk 0:03:00]}  g6 {[%clk 0:02:58]} 3. g3 {[%clk 0:02:59]}  Bg7 {[%clk 0:02:58]} 4. Bg2 {[%clk 0:03:00]}  e6 {[%clk 0:02:58]} 5. f4 {[%clk 0:03:00]}  Ne7 {[%clk 0:02:58]} 6. Nf3 {[%clk 0:03:00]}  O-O {[%clk 0:02:59]} 7. O-O {[%clk 0:03:00]}  d5 {[%clk 0:02:59]} 8. c3 {[%clk 0:03:00]}  Nbc6 {[%clk 0:02:57]} 9. Be3 {[%clk 0:02:52]}  b6 {[%clk 0:02:57]} 10. e5 {[%clk 0:02:52]}  Bb7 {[%clk 0:02:56]} 11. d4 {[%clk 0:02:51]}  cxd4 {[%clk 0:02:45]} 12. cxd4 {[%clk 0:02:52]}  Rc8 {[%clk 0:02:41]} 13. Nc3 {[%clk 0:02:50]}  a6 {[%clk 0:02:39]} 14. Rc1 {[%clk 0:02:49]}  b5 {[%clk 0:02:37]} 15. Qd2 {[%clk 0:02:43]}  Na5 {[%clk 0:02:36]} 16. b3 {[%clk 0:02:42]}  b4 {[%clk 0:02:15]} 17. Na4 {[%clk 0:02:38]}  Nac6 {[%clk 0:02:03]} 18. Nc5 {[%clk 0:02:32]}  Rb8 {[%clk 0:01:47]} 19. Rc2 {[%clk 0:02:12]}  Re8 {[%clk 0:01:19]} 20. Rfc1 {[%clk 0:02:09]}  Bf8 {[%clk 0:01:18]} 21. Nxb7 {[%clk 0:02:06]}  Rxb7 {[%clk 0:01:16]} 22. Rxc6 {[%clk 0:02:07]}  Nxc6 {[%clk 0:01:16]} 23. Rxc6 {[%clk 0:02:08]}  a5 {[%clk 0:01:10]} 24. Bf1 {[%clk 0:01:58]}  Rc7 {[%clk 0:01:04]} 25. Qc2 {[%clk 0:01:50]}  Ree7 {[%clk 0:01:03]} 26. Rxc7 {[%clk 0:01:22]}  Rxc7 {[%clk 0:01:03]} 27. Qd2 {[%clk 0:01:21]}  Rc3 {[%clk 0:01:01]} 28. Bd3 {[%clk 0:01:19]}  Qc7 {[%clk 0:00:59]} 29. Qe2 {[%clk 0:01:15]}  Be7 {[%clk 0:00:55]} 30. Bd2 {[%clk 0:01:12]}  Rc6 {[%clk 0:00:54]} 31. Bb5 {[%clk 0:01:09]}  Rc2 {[%clk 0:00:55]} 32. Bd3 {[%clk 0:01:10]}  Rc6 {[%clk 0:00:54]} 33. g4 {[%clk 0:01:06]}  Qb6 {[%clk 0:00:52]} 34. f5 {[%clk 0:00:50]}  exf5 {[%clk 0:00:43]} 35. gxf5 {[%clk 0:00:47]}  Bf8 {[%clk 0:00:39]} 36. Qg2 {[%clk 0:00:34]}  Kh8 {[%clk 0:00:36]} 37. e6 {[%clk 0:00:29]}  fxe6 {[%clk 0:00:34]} 38. fxg6 {[%clk 0:00:29]}  e5 {[%clk 0:00:29]} 39. gxh7 {[%clk 0:00:23]}  Bg7 {[%clk 0:00:24]} 40. Be3 {[%clk 0:00:19]}  e4 {[%clk 0:00:22]} 41. Ne5 {[%clk 0:00:09]}  Rc8 {[%clk 0:00:15]} 42. Nf7+ {[%clk 0:00:06]}  Kxh7 {[%clk 0:00:15]} 43. Bxe4+ {[%clk 0:00:07]}  dxe4 {[%clk 0:00:15]} 44. Qh3+ {[%clk 0:00:06]}  Kg8 {[%clk 0:00:15]} 45. Qxc8+ {[%clk 0:00:05]}  Kxf7 {[%clk 0:00:16]} 46. Qd7+ {[%clk 0:00:04]}  Kg8 {[%clk 0:00:16]} 47. Qd5+ {[%clk 0:00:03]}  Kh8 {[%clk 0:00:14]} 48. Qxe4 {[%clk 0:00:04]}  Qf6 {[%clk 0:00:10]} 49. d5 {[%clk 0:00:03]}  Qa1+ {[%clk 0:00:11]} 50. Kg2 {[%clk 0:00:03]}  Qxa2+ {[%clk 0:00:10]} 51. Kh3 {[%clk 0:00:03]}  Qxb3 {[%clk 0:00:09]} 52. Qe8+ {[%clk 0:00:03]}  Kh7 {[%clk 0:00:09]} 53. Qh5+ {[%clk 0:00:04]}  Kg8 {[%clk 0:00:09]} 54. Qf3 {[%clk 0:00:02]}  a4 {[%clk 0:00:06]} 55. d6 {[%clk 0:00:00]}  Qe6+ {[%clk 0:00:06]} 0-1

[Event "December 5 Early 2023"]
[Site "https://www.chess.com"]
[Date "2023.12.05"]
[Round "11"]
[White "Mende, Andreas"]
[Black "Fakhretdinova, Margarita"]
[Result "1-0"]
[Board "139"]
[TimeControl "180+1"]
[WhiteFideId "4631102"]
[BlackFideId "24103667"]
[WhiteElo "2091"]
[BlackElo "2272"]
[WhiteTeam "GER"]
[BlackTeam "RUS"]
[WhiteClock "0:00:25"]
[BlackClock "0:00:00"]

1. c4 {[%clk 0:02:57]}  c5 {[%clk 0:03:00]} 2. g3 {[%clk 0:02:57]}  Nc6 {[%clk 0:03:01]} 3. Bg2 {[%clk 0:02:57]}  e6 {[%clk 0:03:02]} 4. Nf3 {[%clk 0:02:56]}  Nge7 {[%clk 0:03:01]} 5. O-O {[%clk 0:02:55]}  g6 {[%clk 0:03:01]} 6. d4 {[%clk 0:02:49]}  cxd4 {[%clk 0:02:59]} 7. Nxd4 {[%clk 0:02:49]}  Bg7 {[%clk 0:02:59]} 8. Nb5 {[%clk 0:02:39]}  O-O {[%clk 0:02:57]} 9. Nd6 {[%clk 0:02:38]}  Nf5 {[%clk 0:02:57]} 10. c5 {[%clk 0:02:32]}  b6 {[%clk 0:02:49]} 11. e4 {[%clk 0:02:21]}  Nfd4 {[%clk 0:02:32]} 12. cxb6 {[%clk 0:01:57]}  Qxb6 {[%clk 0:02:20]} 13. Nc3 {[%clk 0:01:57]}  Ba6 {[%clk 0:02:13]} 14. Re1 {[%clk 0:01:55]}  Qc7 {[%clk 0:02:13]} 15. e5 {[%clk 0:01:37]}  Bxe5 {[%clk 0:01:38]} 16. Rxe5 {[%clk 0:01:32]}  Qxd6 {[%clk 0:01:05]} 17. Re1 {[%clk 0:01:13]}  Ne2+ {[%clk 0:00:36]} 18. Nxe2 {[%clk 0:01:11]}  Qxd1 {[%clk 0:00:35]} 19. Rxd1 {[%clk 0:01:11]}  Bxe2 {[%clk 0:00:35]} 20. Rxd7 {[%clk 0:01:11]}  Ne5 {[%clk 0:00:35]} 21. Rd2 {[%clk 0:01:06]}  Nf3+ {[%clk 0:00:33]} 22. Bxf3 {[%clk 0:01:05]}  Bxf3 {[%clk 0:00:34]} 23. Rd3 {[%clk 0:01:05]}  Bd5 {[%clk 0:00:10]} 24. Bh6 {[%clk 0:01:03]}  Rfc8 {[%clk 0:00:10]} 25. b3 {[%clk 0:01:03]}  Rc2 {[%clk 0:00:07]} 26. Rd2 {[%clk 0:01:03]}  Rac8 {[%clk 0:00:06]} 27. Rad1 {[%clk 0:01:01]}  f5 {[%clk 0:00:04]} 28. Be3 {[%clk 0:00:55]}  Rxd2 {[%clk 0:00:02]} 29. Bxd2 {[%clk 0:00:55]}  Rc2 {[%clk 0:00:02]} 30. Be3 {[%clk 0:00:43]}  Rxa2 {[%clk 0:00:02]} 31. b4 {[%clk 0:00:42]}  Kf7 {[%clk 0:00:01]} 32. h4 {[%clk 0:00:40]}  h5 {[%clk 0:00:01]} 33. Rc1 {[%clk 0:00:40]}  Kf6 {[%clk 0:00:01]} 34. Bc5 {[%clk 0:00:37]}  Ke5 {[%clk 0:00:01]} 35. Re1+ {[%clk 0:00:35]}  Kf6 {[%clk 0:00:01]} 36. Bd4+ {[%clk 0:00:35]}  Kf7 {[%clk 0:00:01]} 37. Bc5 {[%clk 0:00:35]}  Rc2 {[%clk 0:00:01]} 38. Bd4 {[%clk 0:00:35]}  Bc4 {[%clk 0:00:01]} 39. Bc5 {[%clk 0:00:34]}  Bd5 {[%clk 0:00:01]} 40. Bxa7 {[%clk 0:00:34]}  Rb2 {[%clk 0:00:01]} 41. Bc5 {[%clk 0:00:34]}  Ke8 {[%clk 0:00:01]} 42. Kh2 {[%clk 0:00:31]}  Kd7 {[%clk 0:00:02]} 43. Kg1 {[%clk 0:00:30]}  Kc6 {[%clk 0:00:02]} 44. Rd1 {[%clk 0:00:29]}  Bf3 {[%clk 0:00:02]} 45. Rc1 {[%clk 0:00:29]}  Kd5 {[%clk 0:00:01]} 46. Be7 {[%clk 0:00:28]}  Ke4 {[%clk 0:00:01]} 47. Bd6 {[%clk 0:00:25]}  Kd3 {[%clk 0:00:00]} 48. Re1 {[%clk 0:00:25]} 1-0

[Event "December 5 Early 2023"]
[Site "https://www.chess.com"]
[Date "2023.12.05"]
[Round "11"]
[White "Clawitter, Craig"]
[Black "Mangialardo, Tiago Carvalho"]
[Result "1-0"]
[Board "140"]
[TimeControl "180+1"]
[WhiteFideId "2023105"]
[BlackFideId "2130718"]
[WhiteElo "2225"]
[BlackElo "2086"]
[WhiteTeam "USA"]
[BlackTeam "BRA"]
[WhiteClock "0:00:14"]
[BlackClock "0:00:04"]

1. e4 {[%clk 0:02:55]}  Nf6 {[%clk 0:03:00]} 2. e5 {[%clk 0:02:54]}  Nd5 {[%clk 0:03:01]} 3. d4 {[%clk 0:02:54]}  d6 {[%clk 0:03:01]} 4. Nf3 {[%clk 0:02:55]}  Nc6 {[%clk 0:03:00]} 5. Bc4 {[%clk 0:02:48]}  Nb6 {[%clk 0:03:00]} 6. Bb3 {[%clk 0:02:48]}  dxe5 {[%clk 0:03:00]} 7. d5 {[%clk 0:02:34]}  Na5 {[%clk 0:02:44]} 8. Nxe5 {[%clk 0:02:33]}  Nxb3 {[%clk 0:02:44]} 9. axb3 {[%clk 0:02:29]}  Qxd5 {[%clk 0:02:42]} 10. Qe2 {[%clk 0:02:29]}  f6 {[%clk 0:02:28]} 11. Nf3 {[%clk 0:02:11]}  e5 {[%clk 0:02:28]} 12. O-O {[%clk 0:02:10]}  Bg4 {[%clk 0:02:23]} 13. Nbd2 {[%clk 0:02:01]}  Bc5 {[%clk 0:02:12]} 14. Ne4 {[%clk 0:01:50]}  Be7 {[%clk 0:01:45]} 15. Rd1 {[%clk 0:01:10]}  Qe6 {[%clk 0:01:39]} 16. Be3 {[%clk 0:01:07]}  Qf5 {[%clk 0:01:00]} 17. Bxb6 {[%clk 0:00:55]}  cxb6 {[%clk 0:00:50]} 18. Nd6+ {[%clk 0:00:54]}  Bxd6 {[%clk 0:00:49]} 19. Rxd6 {[%clk 0:00:55]}  Bxf3 {[%clk 0:00:45]} 20. Qxf3 {[%clk 0:00:47]}  Qxf3 {[%clk 0:00:45]} 21. gxf3 {[%clk 0:00:48]}  Ke7 {[%clk 0:00:45]} 22. Rd3 {[%clk 0:00:37]}  Rhd8 {[%clk 0:00:44]} 23. Rxd8 {[%clk 0:00:31]}  Kxd8 {[%clk 0:00:41]} 24. Kg2 {[%clk 0:00:28]}  a6 {[%clk 0:00:39]} 25. Ra4 {[%clk 0:00:23]}  b5 {[%clk 0:00:34]} 26. Rh4 {[%clk 0:00:22]}  h6 {[%clk 0:00:32]} 27. f4 {[%clk 0:00:20]}  exf4 {[%clk 0:00:21]} 28. Rxf4 {[%clk 0:00:21]}  Ke7 {[%clk 0:00:21]} 29. h4 {[%clk 0:00:19]}  Rd8 {[%clk 0:00:19]} 30. c4 {[%clk 0:00:17]}  b4 {[%clk 0:00:15]} 31. c5 {[%clk 0:00:16]}  a5 {[%clk 0:00:15]} 32. h5 {[%clk 0:00:12]}  Rd3 {[%clk 0:00:15]} 33. Rf5 {[%clk 0:00:12]}  Rxb3 {[%clk 0:00:14]} 34. c6 {[%clk 0:00:12]}  bxc6 {[%clk 0:00:14]} 35. Rxa5 {[%clk 0:00:12]}  Rxb2 {[%clk 0:00:14]} 36. Ra7+ {[%clk 0:00:12]}  Kd6 {[%clk 0:00:13]} 37. Rxg7 {[%clk 0:00:12]}  c5 {[%clk 0:00:12]} 38. Rg6 {[%clk 0:00:12]}  Ke5 {[%clk 0:00:11]} 39. Rxh6 {[%clk 0:00:13]}  c4 {[%clk 0:00:12]} 40. Rh8 {[%clk 0:00:13]}  c3 {[%clk 0:00:12]} 41. h6 {[%clk 0:00:13]}  c2 {[%clk 0:00:12]} 42. Rc8 {[%clk 0:00:13]}  b3 {[%clk 0:00:12]} 43. h7 {[%clk 0:00:13]}  Rb1 {[%clk 0:00:12]} 44. h8=Q {[%clk 0:00:13]}  c1=Q {[%clk 0:00:10]} 45. Qe8+ {[%clk 0:00:13]}  Kd4 {[%clk 0:00:07]} 46. Rxc1 {[%clk 0:00:13]}  Rxc1 {[%clk 0:00:07]} 47. Qe3+ {[%clk 0:00:14]}  Kc4 {[%clk 0:00:05]} 48. Qxc1+ {[%clk 0:00:14]}  Kb4 {[%clk 0:00:04]} 49. Qb2 {[%clk 0:00:14]} 1-0